[Event "Titled Tuesday Blitz August 16 Late 2022"]
[White "Mendez Fortes, Eduardo Jesus"]
[Black "Eljanov, Pavel"]
[WhiteFideId "3502376"]
[BlackFideId "14102951"]
[WhiteElo "2307"]
[BlackElo "2601"]
[Result "1-0"]
[Round "01"]
[TimeControl "180+1"]
[Date "2022.08.18"]
[WhiteClock "0:00:00"]
[BlackClock "0:00:00"]

1. e4 {[%clk 0:00:00]}  c6 {[%clk 0:00:00]} 2. d4 {[%clk 0:00:00]}  d5 {[%clk 0:00:00]} 3. Nc3 {[%clk 0:00:00]}  dxe4 {[%clk 0:00:00]} 4. Nxe4 {[%clk 0:00:00]}  Nf6 {[%clk 0:00:00]} 5. Nxf6+ {[%clk 0:00:00]}  exf6 {[%clk 0:00:00]} 6. c3 {[%clk 0:00:00]}  Bd6 {[%clk 0:00:00]} 7. Bd3 {[%clk 0:00:00]}  O-O {[%clk 0:00:00]} 8. Qc2 {[%clk 0:00:00]}  Re8+ {[%clk 0:00:00]} 9. Ne2 {[%clk 0:00:00]}  h5 {[%clk 0:00:00]} 10. O-O {[%clk 0:00:00]}  h4 {[%clk 0:00:00]} 11. h3 {[%clk 0:00:00]}  Nd7 {[%clk 0:00:00]} 12. Be3 {[%clk 0:00:00]}  Nf8 {[%clk 0:00:00]} 13. c4 {[%clk 0:00:00]}  Bb8 {[%clk 0:00:00]} 14. Qd2 {[%clk 0:00:00]}  Qc7 {[%clk 0:00:00]} 15. f4 {[%clk 0:00:00]}  Ng6 {[%clk 0:00:00]} 16. Rae1 {[%clk 0:00:00]}  Ne7 {[%clk 0:00:00]} 17. Nc3 {[%clk 0:00:00]}  Nf5 {[%clk 0:00:00]} 18. Qf2 {[%clk 0:00:00]}  Nxe3 {[%clk 0:00:00]} 19. Rxe3 {[%clk 0:00:00]}  Rxe3 {[%clk 0:00:00]} 20. Qxe3 {[%clk 0:00:00]}  Qd8 {[%clk 0:00:00]} 21. Re1 {[%clk 0:00:00]}  Bd7 {[%clk 0:00:00]} 22. Ne4 {[%clk 0:00:00]}  Bc7 {[%clk 0:00:00]} 23. Nc5 {[%clk 0:00:00]}  b6 {[%clk 0:00:00]} 24. Nxd7 {[%clk 0:00:00]}  Qxd7 {[%clk 0:00:00]} 25. Qe4 {[%clk 0:00:00]}  g6 {[%clk 0:00:00]} 26. d5 {[%clk 0:00:00]}  Rd8 {[%clk 0:00:00]} 27. f5 {[%clk 0:00:00]}  g5 {[%clk 0:00:00]} 28. Qe7 {[%clk 0:00:00]}  Bg3 {[%clk 0:00:00]} 29. Qxd7 {[%clk 0:00:00]}  Rxd7 {[%clk 0:00:00]} 30. Re8+ {[%clk 0:00:00]}  Kg7 {[%clk 0:00:00]} 31. Be4 {[%clk 0:00:00]}  b5 {[%clk 0:00:00]} 32. b3 {[%clk 0:00:00]}  bxc4 {[%clk 0:00:00]} 33. bxc4 {[%clk 0:00:00]}  cxd5 {[%clk 0:00:00]} 34. Bxd5 {[%clk 0:00:00]}  Bd6 {[%clk 0:00:00]} 35. Kf1 {[%clk 0:00:00]}  Rc7 {[%clk 0:00:00]} 36. Rd8 {[%clk 0:00:00]}  Bc5 {[%clk 0:00:00]} 37. Ke2 {[%clk 0:00:00]}  Re7+ {[%clk 0:00:00]} 38. Kd2 {[%clk 0:00:00]}  a5 {[%clk 0:00:00]} 39. Rc8 {[%clk 0:00:00]}  Bd6 {[%clk 0:00:00]} 40. Kd3 {[%clk 0:00:00]}  a4 {[%clk 0:00:00]} 41. c5 {[%clk 0:00:00]}  Bf4 {[%clk 0:00:00]} 42. c6 {[%clk 0:00:00]}  Re3+ {[%clk 0:00:00]} 43. Kc4 {[%clk 0:00:00]}  Re2 {[%clk 0:00:00]} 44. Kb5 {[%clk 0:00:00]}  Rd2 {[%clk 0:00:00]} 45. Bc4 {[%clk 0:00:00]}  a3 {[%clk 0:00:00]} 46. c7 {[%clk 0:00:00]}  Bxc7 {[%clk 0:00:00]} 47. Rxc7 {[%clk 0:00:00]}  g4 {[%clk 0:00:00]} 48. Rxf7+ {[%clk 0:00:00]}  Kh6 {[%clk 0:00:00]} 49. hxg4 {[%clk 0:00:00]}  Rxg2 {[%clk 0:00:00]} 50. Rxf6+ {[%clk 0:00:00]}  Kg5 {[%clk 0:00:00]} 51. Rg6+ {[%clk 0:00:00]}  Kf4 {[%clk 0:00:00]} 52. Bd5 {[%clk 0:00:00]}  h3 {[%clk 0:00:00]} 53. f6 {[%clk 0:00:00]}  Rd2 {[%clk 0:00:00]} 54. Kc6 {[%clk 0:00:00]}  Rc2+ {[%clk 0:00:00]} 55. Kd6 {[%clk 0:00:00]}  h2 {[%clk 0:00:00]} 56. f7 {[%clk 0:00:00]}  Rc8 {[%clk 0:00:00]} 57. Rg8 {[%clk 0:00:00]}  h1=Q {[%clk 0:00:00]} 58. Bxh1 {[%clk 0:00:00]} 1-0


[Site "https://www.chess.com"]

[Event "Titled Tuesday Blitz August 16 Late 2022"]
[White "Naroditsky, Daniel"]
[Black "Bobadilla Viera, Jorge Samuel"]
[WhiteFideId "2026961"]
[BlackFideId "3906353"]
[WhiteElo "2628"]
[BlackElo "2202"]
[Result "1-0"]
[Round "01"]
[TimeControl "180+1"]
[Date "2022.08.16"]
[WhiteClock "0:00:42"]
[BlackClock "0:01:04"]

1. e4 {[%clk 0:02:57]}  c5 {[%clk 0:03:00]} 2. Nf3 {[%clk 0:02:57]}  d6 {[%clk 0:03:00]} 3. Bb5+ {[%clk 0:02:57]}  Nd7 {[%clk 0:03:00]} 4. O-O {[%clk 0:02:56]}  a6 {[%clk 0:03:00]} 5. Bd3 {[%clk 0:02:57]}  Ngf6 {[%clk 0:03:00]} 6. Re1 {[%clk 0:02:57]}  g6 {[%clk 0:02:57]} 7. c3 {[%clk 0:02:57]}  Bg7 {[%clk 0:02:57]} 8. Bc2 {[%clk 0:02:57]}  O-O {[%clk 0:02:58]} 9. d4 {[%clk 0:02:58]}  e5 {[%clk 0:02:59]} 10. a4 {[%clk 0:02:54]}  Qc7 {[%clk 0:02:52]} 11. d5 {[%clk 0:02:38]}  h6 {[%clk 0:02:51]} 12. Nbd2 {[%clk 0:02:38]}  b6 {[%clk 0:02:49]} 13. Nf1 {[%clk 0:02:38]}  Nh5 {[%clk 0:02:43]} 14. Ne3 {[%clk 0:02:36]}  Ndf6 {[%clk 0:02:37]} 15. g3 {[%clk 0:02:28]}  Rb8 {[%clk 0:02:31]} 16. Nh4 {[%clk 0:02:24]}  Bd7 {[%clk 0:02:19]} 17. Bd2 {[%clk 0:02:09]}  Rfc8 {[%clk 0:02:16]} 18. Ra3 {[%clk 0:02:02]}  Ra8 {[%clk 0:02:15]} 19. Qa1 {[%clk 0:02:01]}  Qd8 {[%clk 0:02:11]} 20. c4 {[%clk 0:01:57]}  Nh7 {[%clk 0:02:06]} 21. Bd1 {[%clk 0:01:55]}  Nf4 {[%clk 0:02:06]} 22. gxf4 {[%clk 0:01:33]}  Qxh4 {[%clk 0:02:04]} 23. Ng2 {[%clk 0:01:34]}  Qe7 {[%clk 0:02:02]} 24. fxe5 {[%clk 0:01:32]}  Qxe5 {[%clk 0:01:55]} 25. Bc3 {[%clk 0:01:32]}  Qe7 {[%clk 0:01:52]} 26. Bxg7 {[%clk 0:01:32]}  Kxg7 {[%clk 0:01:52]} 27. Rae3 {[%clk 0:01:29]}  f6 {[%clk 0:01:45]} 28. f4 {[%clk 0:01:28]}  Re8 {[%clk 0:01:44]} 29. b3 {[%clk 0:01:25]}  Qf7 {[%clk 0:01:42]} 30. Bc2 {[%clk 0:01:19]}  Kg8 {[%clk 0:01:41]} 31. h4 {[%clk 0:01:10]}  Kh8 {[%clk 0:01:37]} 32. e5 {[%clk 0:01:10]}  fxe5 {[%clk 0:01:34]} 33. fxe5 {[%clk 0:01:11]}  dxe5 {[%clk 0:01:33]} 34. Rxe5 {[%clk 0:01:11]}  Qf6 {[%clk 0:01:26]} 35. Bxg6 {[%clk 0:01:04]}  Rg8 {[%clk 0:01:19]} 36. Bxh7 {[%clk 0:00:57]}  Rxg2+ {[%clk 0:01:12]} 37. Kxg2 {[%clk 0:00:57]}  Bh3+ {[%clk 0:01:12]} 38. Kg3 {[%clk 0:00:49]}  Qg7+ {[%clk 0:01:08]} 39. Kxh3 {[%clk 0:00:45]}  Rf8 {[%clk 0:01:08]} 40. Rf5 {[%clk 0:00:43]}  Kxh7 {[%clk 0:01:04]} 41. Qxg7+ {[%clk 0:00:42]} 1-0


[Site "https://www.chess.com"]

[Event "Titled Tuesday Blitz August 16 Late 2022"]
[White "Olenik Campa, Rudi"]
[Black "Zou, Chen"]
[WhiteFideId "14633264"]
[BlackFideId "8610959"]
[WhiteElo "2008"]
[BlackElo "2276"]
[Result "0-1"]
[Round "01"]
[TimeControl "180+1"]
[Date "2022.08.18"]
[WhiteClock "0:00:00"]
[BlackClock "0:00:00"]

1. e4 {[%clk 0:00:00]}  c5 {[%clk 0:00:00]} 2. Nf3 {[%clk 0:00:00]}  d6 {[%clk 0:00:00]} 3. d4 {[%clk 0:00:00]}  cxd4 {[%clk 0:00:00]} 4. Nxd4 {[%clk 0:00:00]}  Nf6 {[%clk 0:00:00]} 5. f3 {[%clk 0:00:00]}  e5 {[%clk 0:00:00]} 6. Nb3 {[%clk 0:00:00]}  Be7 {[%clk 0:00:00]} 7. c4 {[%clk 0:00:00]}  O-O {[%clk 0:00:00]} 8. Be3 {[%clk 0:00:00]}  a5 {[%clk 0:00:00]} 9. Nc3 {[%clk 0:00:00]}  a4 {[%clk 0:00:00]} 10. Nd2 {[%clk 0:00:00]}  a3 {[%clk 0:00:00]} 11. b4 {[%clk 0:00:00]}  Nc6 {[%clk 0:00:00]} 12. Rb1 {[%clk 0:00:00]}  Nh5 {[%clk 0:00:00]} 13. Nd5 {[%clk 0:00:00]}  Bg5 {[%clk 0:00:00]} 14. Bb6 {[%clk 0:00:00]}  Qd7 {[%clk 0:00:00]} 15. Bf2 {[%clk 0:00:00]}  Rb8 {[%clk 0:00:00]} 16. h4 {[%clk 0:00:00]}  Bd8 {[%clk 0:00:00]} 17. g3 {[%clk 0:00:00]}  Qe8 {[%clk 0:00:00]} 18. Qb3 {[%clk 0:00:00]}  Kh8 {[%clk 0:00:00]} 19. Qxa3 {[%clk 0:00:00]}  f5 {[%clk 0:00:00]} 20. Be2 {[%clk 0:00:00]}  Nd4 {[%clk 0:00:00]} 21. Qa7 {[%clk 0:00:00]}  Nc6 {[%clk 0:00:00]} 22. Qa3 {[%clk 0:00:00]}  Be6 {[%clk 0:00:00]} 23. exf5 {[%clk 0:00:00]}  Bxf5 {[%clk 0:00:00]} 24. Ne4 {[%clk 0:00:00]}  Qg6 {[%clk 0:00:00]} 25. Qd3 {[%clk 0:00:00]}  Nd4 {[%clk 0:00:00]} 26. g4 {[%clk 0:00:00]}  Bxe4 {[%clk 0:00:00]} 27. Qxe4 {[%clk 0:00:00]}  Nc2+ {[%clk 0:00:00]} 28. Kf1 {[%clk 0:00:00]}  Ng3+ {[%clk 0:00:00]} 0-1


[Site "https://www.chess.com"]

[Event "Titled Tuesday Blitz August 16 Late 2022"]
[White "Potapova, Margarita"]
[Black "Nakamura, Hikaru"]
[WhiteFideId "14126869"]
[BlackFideId "2016192"]
[WhiteElo "2225"]
[BlackElo "2850"]
[Result "0-1"]
[Round "01"]
[TimeControl "180+1"]
[Date "2022.08.16"]
[WhiteClock "0:00:07"]
[BlackClock "0:00:15"]

1. d4 {[%clk 0:03:00]}  f5 {[%clk 0:02:59]} 2. e4 {[%clk 0:03:00]}  fxe4 {[%clk 0:02:59]} 3. Nc3 {[%clk 0:03:01]}  Nf6 {[%clk 0:02:59]} 4. Bg5 {[%clk 0:03:01]}  Nc6 {[%clk 0:03:00]} 5. d5 {[%clk 0:03:01]}  Ne5 {[%clk 0:03:00]} 6. Qe2 {[%clk 0:03:01]}  Nf7 {[%clk 0:02:59]} 7. h4 {[%clk 0:03:00]}  c6 {[%clk 0:02:46]} 8. O-O-O {[%clk 0:02:59]}  Qa5 {[%clk 0:02:43]} 9. Bxf6 {[%clk 0:02:57]}  gxf6 {[%clk 0:02:42]} 10. Qxe4 {[%clk 0:02:56]}  Bg7 {[%clk 0:02:26]} 11. Kb1 {[%clk 0:02:41]}  f5 {[%clk 0:02:23]} 12. Qxf5 {[%clk 0:02:22]}  Bxc3 {[%clk 0:02:20]} 13. bxc3 {[%clk 0:02:21]}  Qxc3 {[%clk 0:02:19]} 14. Rh3 {[%clk 0:02:15]}  Qb4+ {[%clk 0:02:02]} 15. Rb3 {[%clk 0:02:13]}  Qxh4 {[%clk 0:02:01]} 16. Nf3 {[%clk 0:02:07]}  Qf6 {[%clk 0:01:58]} 17. Qh5 {[%clk 0:01:41]}  Kd8 {[%clk 0:01:51]} 18. dxc6 {[%clk 0:01:38]}  bxc6 {[%clk 0:01:51]} 19. Nd4 {[%clk 0:01:31]}  Nd6 {[%clk 0:01:36]} 20. Rf3 {[%clk 0:01:22]}  Rb8+ {[%clk 0:01:29]} 21. Kc1 {[%clk 0:01:20]}  Qg6 {[%clk 0:01:26]} 22. Qe5 {[%clk 0:01:06]}  Rg8 {[%clk 0:01:22]} 23. Re3 {[%clk 0:01:05]}  Rg7 {[%clk 0:00:52]} 24. Rd2 {[%clk 0:01:01]}  Qh6 {[%clk 0:00:27]} 25. Rh3 {[%clk 0:00:52]}  Qg5 {[%clk 0:00:19]} 26. Qxg5 {[%clk 0:00:42]}  Rxg5 {[%clk 0:00:20]} 27. Rxh7 {[%clk 0:00:43]}  Rb6 {[%clk 0:00:21]} 28. Rh8+ {[%clk 0:00:31]}  Kc7 {[%clk 0:00:20]} 29. Rh7 {[%clk 0:00:31]}  Re5 {[%clk 0:00:20]} 30. Re2 {[%clk 0:00:26]}  Rd5 {[%clk 0:00:15]} 31. c3 {[%clk 0:00:23]}  e5 {[%clk 0:00:15]} 32. Ne6+ {[%clk 0:00:20]}  Kb8 {[%clk 0:00:15]} 33. Ng5 {[%clk 0:00:17]}  Rdb5 {[%clk 0:00:15]} 34. Kd2 {[%clk 0:00:11]}  Ba6 {[%clk 0:00:14]} 35. Ke3 {[%clk 0:00:09]}  Rb1 {[%clk 0:00:14]} 36. Rd2 {[%clk 0:00:08]}  Nf5+ {[%clk 0:00:13]} 37. Ke4 {[%clk 0:00:08]}  d5+ {[%clk 0:00:10]} 38. Kxf5 {[%clk 0:00:08]}  Rxf1 {[%clk 0:00:10]} 39. f3 {[%clk 0:00:08]}  e4 {[%clk 0:00:09]} 40. Nxe4 {[%clk 0:00:06]}  Bc8+ {[%clk 0:00:09]} 41. Ke5 {[%clk 0:00:05]}  dxe4 {[%clk 0:00:10]} 42. Kxe4 {[%clk 0:00:05]}  Re1+ {[%clk 0:00:11]} 43. Kf4 {[%clk 0:00:05]}  Re8 {[%clk 0:00:12]} 44. g4 {[%clk 0:00:04]}  Rf8+ {[%clk 0:00:12]} 45. Kg3 {[%clk 0:00:05]}  Rb1 {[%clk 0:00:12]} 46. Rg2 {[%clk 0:00:04]}  Rf1 {[%clk 0:00:12]} 47. Rb2+ {[%clk 0:00:04]}  Ka8 {[%clk 0:00:12]} 48. f4 {[%clk 0:00:03]}  R1xf4 {[%clk 0:00:11]} 49. g5 {[%clk 0:00:03]}  Rg4+ {[%clk 0:00:12]} 50. Kh2 {[%clk 0:00:03]}  Rxg5 {[%clk 0:00:13]} 51. c4 {[%clk 0:00:03]}  Rfg8 {[%clk 0:00:13]} 52. Rh4 {[%clk 0:00:02]}  Rg4 {[%clk 0:00:13]} 53. Rxg4 {[%clk 0:00:02]}  Rxg4 {[%clk 0:00:13]} 54. c5 {[%clk 0:00:03]}  Rc4 {[%clk 0:00:13]} 55. Rd2 {[%clk 0:00:04]}  Rxc5 {[%clk 0:00:13]} 56. Kg3 {[%clk 0:00:04]}  Kb7 {[%clk 0:00:13]} 57. Kf4 {[%clk 0:00:05]}  Rd5 {[%clk 0:00:14]} 58. Ke3 {[%clk 0:00:06]}  Rxd2 {[%clk 0:00:14]} 59. Kxd2 {[%clk 0:00:07]}  Be6 {[%clk 0:00:15]} 0-1


[Site "https://www.chess.com"]

[Event "Titled Tuesday Blitz August 16 Late 2022"]
[White "Quispe Santacruz, Javier"]
[Black "Do Nascimento,Christian Almeida"]
[WhiteFideId "3800920"]
[BlackFideId "2143801"]
[WhiteElo "1811"]
[BlackElo "2112"]
[Result "0-1"]
[Round "01"]
[TimeControl "180+1"]
[Date "2022.08.18"]
[WhiteClock "0:00:00"]
[BlackClock "0:00:00"]

1. d4 {[%clk 0:00:00]}  Nf6 {[%clk 0:00:00]} 2. c4 {[%clk 0:00:00]}  e6 {[%clk 0:00:00]} 3. Nf3 {[%clk 0:00:00]}  d5 {[%clk 0:00:00]} 4. Nc3 {[%clk 0:00:00]}  Be7 {[%clk 0:00:00]} 5. cxd5 {[%clk 0:00:00]}  exd5 {[%clk 0:00:00]} 6. Bg5 {[%clk 0:00:00]}  c6 {[%clk 0:00:00]} 7. Qc2 {[%clk 0:00:00]}  O-O {[%clk 0:00:00]} 8. e3 {[%clk 0:00:00]}  Bg4 {[%clk 0:00:00]} 9. Ne5 {[%clk 0:00:00]}  Bh5 {[%clk 0:00:00]} 10. Bd3 {[%clk 0:00:00]}  Bg6 {[%clk 0:00:00]} 11. Nxg6 {[%clk 0:00:00]}  hxg6 {[%clk 0:00:00]} 12. O-O {[%clk 0:00:00]}  Nbd7 {[%clk 0:00:00]} 13. Rab1 {[%clk 0:00:00]}  a5 {[%clk 0:00:00]} 14. a3 {[%clk 0:00:00]}  Re8 {[%clk 0:00:00]} 15. b4 {[%clk 0:00:00]}  axb4 {[%clk 0:00:00]} 16. axb4 {[%clk 0:00:00]}  Qc7 {[%clk 0:00:00]} 17. Rfc1 {[%clk 0:00:00]}  Bd6 {[%clk 0:00:00]} 18. g3 {[%clk 0:00:00]}  Rec8 {[%clk 0:00:00]} 19. b5 {[%clk 0:00:00]}  Qa5 {[%clk 0:00:00]} 20. bxc6 {[%clk 0:00:00]}  Rxc6 {[%clk 0:00:00]} 21. Qd2 {[%clk 0:00:00]}  Bb4 {[%clk 0:00:00]} 22. Rb3 {[%clk 0:00:00]}  Rac8 {[%clk 0:00:00]} 0-1


[Site "https://www.chess.com"]

[Event "Titled Tuesday Blitz August 16 Late 2022"]
[White "Rangel, Daniel"]
[Black "Korchmar, Vasiliy"]
[WhiteFideId "2124475"]
[BlackFideId "24131750"]
[WhiteElo "2225"]
[BlackElo "2370"]
[Result "0-1"]
[Round "01"]
[TimeControl "180+1"]
[Date "2022.08.18"]
[WhiteClock "0:00:00"]
[BlackClock "0:00:00"]

1. c4 {[%clk 0:00:00]}  c6 {[%clk 0:00:00]} 2. g3 {[%clk 0:00:00]}  d5 {[%clk 0:00:00]} 3. Bg2 {[%clk 0:00:00]}  Nf6 {[%clk 0:00:00]} 4. Nf3 {[%clk 0:00:00]}  Bg4 {[%clk 0:00:00]} 5. O-O {[%clk 0:00:00]}  e6 {[%clk 0:00:00]} 6. b3 {[%clk 0:00:00]}  Nbd7 {[%clk 0:00:00]} 7. Bb2 {[%clk 0:00:00]}  Bd6 {[%clk 0:00:00]} 8. d3 {[%clk 0:00:00]}  O-O {[%clk 0:00:00]} 9. Nbd2 {[%clk 0:00:00]}  e5 {[%clk 0:00:00]} 10. Qc2 {[%clk 0:00:00]}  Re8 {[%clk 0:00:00]} 11. e4 {[%clk 0:00:00]}  a5 {[%clk 0:00:00]} 12. h3 {[%clk 0:00:00]}  Bh5 {[%clk 0:00:00]} 13. a3 {[%clk 0:00:00]}  h6 {[%clk 0:00:00]} 14. Nh4 {[%clk 0:00:00]}  Nc5 {[%clk 0:00:00]} 15. Nf5 {[%clk 0:00:00]}  Be2 {[%clk 0:00:00]} 16. Rfe1 {[%clk 0:00:00]}  Bxd3 {[%clk 0:00:00]} 17. Qc1 {[%clk 0:00:00]}  Nfxe4 {[%clk 0:00:00]} 18. Nxe4 {[%clk 0:00:00]}  Bxe4 {[%clk 0:00:00]} 19. Bxe4 {[%clk 0:00:00]}  Nxe4 {[%clk 0:00:00]} 20. Qd1 {[%clk 0:00:00]}  Bf8 {[%clk 0:00:00]} 21. Rxe4 {[%clk 0:00:00]}  dxe4 {[%clk 0:00:00]} 22. Qg4 {[%clk 0:00:00]}  Qg5 {[%clk 0:00:00]} 23. Qxe4 {[%clk 0:00:00]}  g6 {[%clk 0:00:00]} 24. Ne3 {[%clk 0:00:00]}  Rad8 {[%clk 0:00:00]} 25. h4 {[%clk 0:00:00]}  Qh5 {[%clk 0:00:00]} 26. Re1 {[%clk 0:00:00]}  Rd2 {[%clk 0:00:00]} 27. Bc3 {[%clk 0:00:00]}  Re2 {[%clk 0:00:00]} 28. Rxe2 {[%clk 0:00:00]}  Qxe2 {[%clk 0:00:00]} 29. Bxa5 {[%clk 0:00:00]}  Bxa3 {[%clk 0:00:00]} 30. Bc3 {[%clk 0:00:00]}  Bc5 {[%clk 0:00:00]} 31. Kg2 {[%clk 0:00:00]}  Bxe3 {[%clk 0:00:00]} 32. Qxe3 {[%clk 0:00:00]}  Qxe3 {[%clk 0:00:00]} 33. fxe3 {[%clk 0:00:00]}  f6 {[%clk 0:00:00]} 0-1


[Site "https://www.chess.com"]

[Event "Titled Tuesday Blitz August 16 Late 2022"]
[White "Rasulov, Vugar"]
[Black "Wadsworth, Matthew J"]
[WhiteFideId "13402390"]
[BlackFideId "415804"]
[WhiteElo "2509"]
[BlackElo "2294"]
[Result "1-0"]
[Round "01"]
[TimeControl "180+1"]
[Date "2022.08.16"]
[WhiteClock "0:02:15"]
[BlackClock "0:01:20"]

1. d4 {[%clk 0:03:00]}  Nf6 {[%clk 0:02:57]} 2. Nf3 {[%clk 0:03:00]}  c5 {[%clk 0:02:57]} 3. d5 {[%clk 0:03:00]}  e6 {[%clk 0:02:56]} 4. c4 {[%clk 0:02:59]}  d6 {[%clk 0:02:56]} 5. Nc3 {[%clk 0:02:59]}  exd5 {[%clk 0:02:55]} 6. cxd5 {[%clk 0:02:59]}  g6 {[%clk 0:02:55]} 7. Bf4 {[%clk 0:03:00]}  a6 {[%clk 0:02:54]} 8. a4 {[%clk 0:03:00]}  Bg7 {[%clk 0:02:55]} 9. e3 {[%clk 0:02:59]}  O-O {[%clk 0:02:55]} 10. Be2 {[%clk 0:02:59]}  Qe7 {[%clk 0:02:56]} 11. O-O {[%clk 0:02:59]}  Nbd7 {[%clk 0:02:56]} 12. Nd2 {[%clk 0:02:58]}  Nh5 {[%clk 0:02:55]} 13. Bxh5 {[%clk 0:02:57]}  gxh5 {[%clk 0:02:54]} 14. Qxh5 {[%clk 0:02:57]}  Ne5 {[%clk 0:02:49]} 15. h3 {[%clk 0:02:49]}  Rb8 {[%clk 0:02:47]} 16. Nde4 {[%clk 0:02:45]}  f5 {[%clk 0:02:36]} 17. Ng5 {[%clk 0:02:33]}  Bf6 {[%clk 0:02:21]} 18. Rad1 {[%clk 0:02:25]}  Ng6 {[%clk 0:02:13]} 19. Rfe1 {[%clk 0:02:20]}  Nxf4 {[%clk 0:01:58]} 20. exf4 {[%clk 0:02:21]}  Qg7 {[%clk 0:01:55]} 21. Ne6 {[%clk 0:02:21]}  Bxe6 {[%clk 0:01:55]} 22. dxe6 {[%clk 0:02:22]}  Bxc3 {[%clk 0:01:38]} 23. bxc3 {[%clk 0:02:22]}  Qe7 {[%clk 0:01:35]} 24. Rd5 {[%clk 0:02:19]}  Rf6 {[%clk 0:01:29]} 25. Rxf5 {[%clk 0:02:15]}  Rxe6 {[%clk 0:01:26]} 26. Qg4+ {[%clk 0:02:15]}  Kh8 {[%clk 0:01:19]} 27. Rxe6 {[%clk 0:02:15]}  Qxe6 {[%clk 0:01:20]} 28. Rf8+ {[%clk 0:02:15]} 1-0


[Site "https://www.chess.com"]

[Event "Titled Tuesday Blitz August 16 Late 2022"]
[White "Romanchuk, Viktor"]
[Black "Stanisz, Patryk"]
[WhiteFideId "14109271"]
[BlackFideId "1123106"]
[WhiteElo "2242"]
[BlackElo "1833"]
[Result "1-0"]
[Round "01"]
[TimeControl "180+1"]
[Date "2022.08.18"]
[WhiteClock "0:00:00"]
[BlackClock "0:00:00"]

1. d4 {[%clk 0:00:00]}  d5 {[%clk 0:00:00]} 2. c4 {[%clk 0:00:00]}  c6 {[%clk 0:00:00]} 3. Nc3 {[%clk 0:00:00]}  Nf6 {[%clk 0:00:00]} 4. e3 {[%clk 0:00:00]}  e6 {[%clk 0:00:00]} 5. Nf3 {[%clk 0:00:00]}  Nbd7 {[%clk 0:00:00]} 6. Qc2 {[%clk 0:00:00]}  Bd6 {[%clk 0:00:00]} 7. b3 {[%clk 0:00:00]}  Qe7 {[%clk 0:00:00]} 8. Be2 {[%clk 0:00:00]}  O-O {[%clk 0:00:00]} 9. O-O {[%clk 0:00:00]}  b6 {[%clk 0:00:00]} 10. Bb2 {[%clk 0:00:00]}  Bb7 {[%clk 0:00:00]} 11. Rad1 {[%clk 0:00:00]}  Rfd8 {[%clk 0:00:00]} 12. h3 {[%clk 0:00:00]}  Rac8 {[%clk 0:00:00]} 13. e4 {[%clk 0:00:00]}  dxe4 {[%clk 0:00:00]} 14. Nxe4 {[%clk 0:00:00]}  Nxe4 {[%clk 0:00:00]} 15. Qxe4 {[%clk 0:00:00]}  Nf6 {[%clk 0:00:00]} 16. Qh4 {[%clk 0:00:00]}  Nd7 {[%clk 0:00:00]} 17. Qxe7 {[%clk 0:00:00]}  Bxe7 {[%clk 0:00:00]} 18. Ne5 {[%clk 0:00:00]}  Bf6 {[%clk 0:00:00]} 19. Bf3 {[%clk 0:00:00]}  Bxe5 {[%clk 0:00:00]} 20. dxe5 {[%clk 0:00:00]}  Nc5 {[%clk 0:00:00]} 21. Ba3 {[%clk 0:00:00]}  Nd3 {[%clk 0:00:00]} 22. Bd6 {[%clk 0:00:00]}  Nf4 {[%clk 0:00:00]} 23. h4 {[%clk 0:00:00]}  Ba8 {[%clk 0:00:00]} 24. Be7 {[%clk 0:00:00]}  Rxd1 {[%clk 0:00:00]} 25. Rxd1 {[%clk 0:00:00]}  Ng6 {[%clk 0:00:00]} 26. Rd7 {[%clk 0:00:00]}  Nxe5 {[%clk 0:00:00]} 27. Rxa7 {[%clk 0:00:00]}  Nxf3+ {[%clk 0:00:00]} 28. gxf3 {[%clk 0:00:00]}  c5 {[%clk 0:00:00]} 29. f4 {[%clk 0:00:00]}  Be4 {[%clk 0:00:00]} 30. Ra6 {[%clk 0:00:00]}  f6 {[%clk 0:00:00]} 31. Rxb6 {[%clk 0:00:00]}  Kf7 {[%clk 0:00:00]} 32. Bd6 {[%clk 0:00:00]}  Kg6 {[%clk 0:00:00]} 33. Kh2 {[%clk 0:00:00]}  Bb1 {[%clk 0:00:00]} 34. a4 {[%clk 0:00:00]}  Bc2 {[%clk 0:00:00]} 35. a5 {[%clk 0:00:00]}  Kf5 {[%clk 0:00:00]} 36. a6 {[%clk 0:00:00]}  Ra8 {[%clk 0:00:00]} 37. Bb8 {[%clk 0:00:00]}  Be4 {[%clk 0:00:00]} 38. Kg3 {[%clk 0:00:00]}  e5 {[%clk 0:00:00]} 39. fxe5 {[%clk 0:00:00]}  fxe5 {[%clk 0:00:00]} 40. a7 {[%clk 0:00:00]}  g6 {[%clk 0:00:00]} 41. Rb5 {[%clk 0:00:00]}  Bc2 {[%clk 0:00:00]} 42. Rxc5 {[%clk 0:00:00]}  Bxb3 {[%clk 0:00:00]} 43. Rxe5+ {[%clk 0:00:00]}  Kf6 {[%clk 0:00:00]} 44. Rc5 {[%clk 0:00:00]}  Bc2 {[%clk 0:00:00]} 45. Rc7 {[%clk 0:00:00]}  h5 {[%clk 0:00:00]} 46. c5 {[%clk 0:00:00]}  g5 {[%clk 0:00:00]} 47. hxg5+ {[%clk 0:00:00]}  Kxg5 {[%clk 0:00:00]} 48. Rg7+ {[%clk 0:00:00]}  Kh6 {[%clk 0:00:00]} 49. Rd7 {[%clk 0:00:00]}  Be4 {[%clk 0:00:00]} 50. c6 {[%clk 0:00:00]} 1-0


[Site "https://www.chess.com"]

[Event "Titled Tuesday Blitz August 16 Late 2022"]
[White "Romero Ruscalleda, Josep"]
[Black "Kruckenhauser, Arthur"]
[WhiteFideId "2231859"]
[BlackFideId "1642812"]
[WhiteElo "2193"]
[BlackElo "2269"]
[Result "0-1"]
[Round "01"]
[TimeControl "180+1"]
[Date "2022.08.18"]
[WhiteClock "0:00:00"]
[BlackClock "0:00:00"]

1. e4 {[%clk 0:00:00]}  c5 {[%clk 0:00:00]} 2. c3 {[%clk 0:00:00]}  Nc6 {[%clk 0:00:00]} 3. d4 {[%clk 0:00:00]}  cxd4 {[%clk 0:00:00]} 4. cxd4 {[%clk 0:00:00]}  d5 {[%clk 0:00:00]} 5. Nc3 {[%clk 0:00:00]}  dxe4 {[%clk 0:00:00]} 6. d5 {[%clk 0:00:00]}  Ne5 {[%clk 0:00:00]} 7. Qd4 {[%clk 0:00:00]}  Ng6 {[%clk 0:00:00]} 8. Nxe4 {[%clk 0:00:00]}  Nf6 {[%clk 0:00:00]} 9. Nxf6+ {[%clk 0:00:00]}  exf6 {[%clk 0:00:00]} 10. Nf3 {[%clk 0:00:00]}  Bd6 {[%clk 0:00:00]} 11. Be3 {[%clk 0:00:00]}  O-O {[%clk 0:00:00]} 12. Bd3 {[%clk 0:00:00]}  Qa5+ {[%clk 0:00:00]} 13. Bd2 {[%clk 0:00:00]}  Re8+ {[%clk 0:00:00]} 14. Kd1 {[%clk 0:00:00]}  Qd8 {[%clk 0:00:00]} 15. Rc1 {[%clk 0:00:00]}  Ne5 {[%clk 0:00:00]} 16. Be4 {[%clk 0:00:00]}  f5 {[%clk 0:00:00]} 17. Bd3 {[%clk 0:00:00]}  Nxf3 {[%clk 0:00:00]} 18. gxf3 {[%clk 0:00:00]}  Be5 {[%clk 0:00:00]} 19. Qc4 {[%clk 0:00:00]}  Bxb2 {[%clk 0:00:00]} 20. Rc2 {[%clk 0:00:00]}  Be5 {[%clk 0:00:00]} 21. f4 {[%clk 0:00:00]}  Bd6 {[%clk 0:00:00]} 22. Be3 {[%clk 0:00:00]}  Bd7 {[%clk 0:00:00]} 23. Rb2 {[%clk 0:00:00]}  b6 {[%clk 0:00:00]} 24. Ke2 {[%clk 0:00:00]}  Rc8 {[%clk 0:00:00]} 25. Qa6 {[%clk 0:00:00]}  Bxf4 {[%clk 0:00:00]} 26. Qxa7 {[%clk 0:00:00]}  Bxe3 {[%clk 0:00:00]} 27. fxe3 {[%clk 0:00:00]}  Qg5 {[%clk 0:00:00]} 28. Qxb6 {[%clk 0:00:00]}  Qg2+ {[%clk 0:00:00]} 29. Kd1 {[%clk 0:00:00]}  Qxh1+ {[%clk 0:00:00]} 0-1


[Site "https://www.chess.com"]